[Event "Live Chess"]
[Site "Chess.com"]
[Date "2024.06.01"]
[Round "-"]
[White "JohanKjeldahl"]
[Black "KeithArkell"]
[Result "1-0"]
[WhiteElo "1896"]
[BlackElo "2431"]
[TimeControl "300"]
[EndTime "14:18:17 PDT"]
[Termination "JohanKjeldahl won by resignation"]

1. c4 {[%clk 0:04:56.5]} 1... b6 {[%clk 0:04:58.4]} 2. d4 {[%clk 0:04:53.6]}
2... Bb7 {[%clk 0:04:57.3]} 3. Nc3 {[%clk 0:04:52.1]} 3... e6 {[%clk 0:04:56.8]}
4. e4 {[%clk 0:04:49.6]} 4... Bb4 {[%clk 0:04:55.8]} 5. f3 {[%clk 0:04:48.2]}
5... Bxc3+ {[%clk 0:04:53.4]} 6. bxc3 {[%clk 0:04:46.5]} 6... Ne7 {[%clk
0:04:53]} 7. Bd3 {[%clk 0:04:44.9]} 7... d6 {[%clk 0:04:52.4]} 8. Ne2 {[%clk
0:04:29.6]} 8... Nd7 {[%clk 0:04:51.5]} 9. O-O {[%clk 0:04:28.3]} 9... e5 {[%clk
0:04:48.2]} 10. Be3 {[%clk 0:04:26.5]} 10... f6 {[%clk 0:04:46]} 11. Qd2 {[%clk
0:04:24.2]} 11... O-O {[%clk 0:04:43.8]} 12. a4 {[%clk 0:04:19.5]} 12... a5
{[%clk 0:04:42.6]} 13. f4 {[%clk 0:04:14.4]} 13... exf4 {[%clk 0:04:41.3]} 14.
Nxf4 {[%clk 0:04:11.6]} 14... Rf7 {[%clk 0:04:40]} 15. Ne6 {[%clk 0:04:10]}
15... Qc8 {[%clk 0:04:39]} 16. d5 {[%clk 0:03:54.5]} 16... Ne5 {[%clk 0:04:37]}
17. Rf4 {[%clk 0:03:37.2]} 17... N7g6 {[%clk 0:04:36]} 18. Rf5 {[%clk
0:03:27.4]} 18... Qb8 {[%clk 0:04:34.5]} 19. Raf1 {[%clk 0:03:23]} 19... Bc8
{[%clk 0:04:33.5]} 20. Bd4 {[%clk 0:03:14.1]} 20... Bxe6 {[%clk 0:04:32.4]} 21.
dxe6 {[%clk 0:03:12]} 21... Re7 {[%clk 0:04:31.8]} 22. Bxe5 {[%clk 0:03:04]}
22... Nxe5 {[%clk 0:04:31.7]} 23. Rxe5 {[%clk 0:02:47.3]} 23... dxe5 {[%clk
0:04:30.1]} 24. c5 {[%clk 0:02:46.3]} 24... Qd8 {[%clk 0:04:25.4]} 25. Qe2
{[%clk 0:02:42.8]} 25... bxc5 {[%clk 0:04:22.6]} 26. Bc4 {[%clk 0:02:41.8]}
26... Kh8 {[%clk 0:04:20.8]} 27. Rd1 {[%clk 0:02:39.6]} 27... Qe8 {[%clk
0:04:20.3]} 28. Qe3 {[%clk 0:02:36.8]} 28... Rxe6 {[%clk 0:04:19.1]} 29. Bxe6
{[%clk 0:02:34.1]} 29... Qxe6 {[%clk 0:04:19]} 30. Qxc5 {[%clk 0:02:32.9]} 30...
Qb6 {[%clk 0:04:14.4]} 31. Rd5 {[%clk 0:02:26.4]} 31... Qxc5+ {[%clk 0:04:12.3]}
32. Rxc5 {[%clk 0:02:25.4]} 32... Ra7 {[%clk 0:04:11.8]} 33. Kf2 {[%clk
0:02:23.6]} 33... Kg8 {[%clk 0:04:11.1]} 34. Ke3 {[%clk 0:02:22.7]} 34... Kf7
{[%clk 0:04:10.7]} 35. Kd3 {[%clk 0:02:22.1]} 35... Ke7 {[%clk 0:04:10.2]} 36.
Kc4 {[%clk 0:02:21.2]} 36... Kd6 {[%clk 0:04:08.5]} 37. Rd5+ {[%clk 0:02:17.4]}
37... Kc6 {[%clk 0:04:06.5]} 38. Rc5+ {[%clk 0:02:16.6]} 38... Kb6 {[%clk
0:04:05.2]} 39. Rb5+ {[%clk 0:02:15.7]} 39... Kc6 {[%clk 0:04:03.3]} 40. Rc5+
{[%clk 0:02:14.8]} 40... Kd7 {[%clk 0:04:01.7]} 41. Rd5+ {[%clk 0:02:13.6]}
41... Kc8 {[%clk 0:04:01.1]} 42. Kc5 {[%clk 0:02:08.3]} 42... Rb7 {[%clk
0:03:57.5]} 43. Rd2 {[%clk 0:02:04.3]} 43... Rb3 {[%clk 0:03:51.8]} 44. Kc4
{[%clk 0:02:00.5]} 44... Rb6 {[%clk 0:03:48.8]} 45. Kc5 {[%clk 0:01:59.1]} 45...
h5 {[%clk 0:03:44]} 46. h4 {[%clk 0:01:53.2]} 46... Rb3 {[%clk 0:03:39]} 47. Kc4
{[%clk 0:01:51.1]} 47... Rb1 {[%clk 0:03:38.1]} 48. Rd5 {[%clk 0:01:46.2]} 48...
Rg1 {[%clk 0:03:34.2]} 49. Rxa5 {[%clk 0:01:44.7]} 49... Rxg2 {[%clk 0:03:33.6]}
50. Ra8+ {[%clk 0:01:37.2]} 50... Kb7 {[%clk 0:03:32.3]} 51. Rg8 {[%clk
0:01:35.5]} 51... Rg4 {[%clk 0:03:31.3]} 52. Kd5 {[%clk 0:01:33.7]} 52... c6+
{[%clk 0:03:27.7]} 53. Kc5 {[%clk 0:01:28.2]} 53... Rxe4 {[%clk 0:03:21.6]} 54.
Rxg7+ {[%clk 0:01:26.2]} 54... Ka6 {[%clk 0:03:20.8]} 55. Kxc6 {[%clk
0:01:24.3]} 55... Rxa4 {[%clk 0:03:14.8]} 56. Rg6 {[%clk 0:01:21.3]} 56... Rf4
{[%clk 0:03:09.6]} 57. Kd5 {[%clk 0:01:18.6]} 57... Kb5 {[%clk 0:03:06.5]} 58.
c4+ {[%clk 0:01:16.3]} 58... Kb4 {[%clk 0:03:04.3]} 59. c5 {[%clk 0:01:10.2]}
59... Rd4+ {[%clk 0:03:03.2]} 60. Kc6 {[%clk 0:01:08.1]} 60... f5 {[%clk
0:03:01.6]} 61. Kb6 {[%clk 0:01:03.8]} 61... f4 {[%clk 0:02:50.6]} 62. c6 {[%clk
0:01:02.8]} 62... f3 {[%clk 0:02:47.4]} 63. Rf6 {[%clk 0:01:01.9]} 63... e4
{[%clk 0:02:25.9]} 64. c7 {[%clk 0:01:00.2]} 64... Rc4 {[%clk 0:02:25.2]} 65.
Kb7 {[%clk 0:00:57.5]} 65... Kc3 {[%clk 0:02:23.6]} 66. c8=Q {[%clk 0:00:55.7]}
66... Rxc8 {[%clk 0:02:22.5]} 67. Kxc8 {[%clk 0:00:55]} 67... Kd2 {[%clk
0:02:18.1]} 68. Kd7 {[%clk 0:00:52.5]} 68... Ke2 {[%clk 0:01:52.5]} 69. Ke6
{[%clk 0:00:47.8]} 69... f2 {[%clk 0:01:51.2]} 70. Ke5 {[%clk 0:00:46.5]} 70...
e3 {[%clk 0:01:50.7]} 71. Ke4 {[%clk 0:00:45.2]} 71... f1=Q {[%clk 0:01:49.5]}
72. Rxf1 {[%clk 0:00:43.3]} 72... Kxf1 {[%clk 0:01:48.9]} 73. Kxe3 {[%clk
0:00:42.6]} 73... Ke1 {[%clk 0:01:46.6]} 74. Kf4 {[%clk 0:00:40.8]} 74... Ke2
{[%clk 0:01:46]} 75. Kg5 {[%clk 0:00:39.8]} 75... Ke3 {[%clk 0:01:45.4]} 76.
Kxh5 {[%clk 0:00:38.7]} 76... Ke4 {[%clk 0:01:44.6]} 77. Kg6 {[%clk 0:00:37.8]}
77... Ke5 {[%clk 0:01:43.5]} 78. h5 {[%clk 0:00:36.9]} 78... Ke6 {[%clk
0:01:42.8]} 79. h6 {[%clk 0:00:36.3]} 79... Ke7 {[%clk 0:01:42.4]} 80. h7 {[%clk
0:00:35.5]} 1-0

[Event "Live Chess"]
[Site "Chess.com"]
[Date "2024.06.01"]
[Round "-"]
[White "Dhaydon19"]
[Black "blunderabit"]
[Result "1-0"]
[WhiteElo "2679"]
[BlackElo "1774"]
[TimeControl "300"]
[EndTime "14:18:17 PDT"]
[Termination "Dhaydon19 won on time"]

1. d3 {[%clk 0:04:57.4]} 1... Nf6 {[%clk 0:04:56.6]} 2. Nf3 {[%clk 0:04:56.4]}
2... b6 {[%clk 0:04:50.2]} 3. g3 {[%clk 0:04:52.2]} 3... Bb7 {[%clk 0:04:49.4]}
4. Bg2 {[%clk 0:04:51.9]} 4... c5 {[%clk 0:04:47.5]} 5. Nh4 {[%clk 0:04:51.6]}
5... Bxg2 {[%clk 0:04:43.4]} 6. Nxg2 {[%clk 0:04:51.3]} 6... Qc8 {[%clk
0:04:40.2]} 7. O-O {[%clk 0:04:50.9]} 7... d6 {[%clk 0:04:34.1]} 8. e4 {[%clk
0:04:50.4]} 8... Nbd7 {[%clk 0:04:31.6]} 9. Nc3 {[%clk 0:04:49]} 9... g6 {[%clk
0:04:29.8]} 10. f4 {[%clk 0:04:48.3]} 10... Bg7 {[%clk 0:04:28.2]} 11. Be3
{[%clk 0:04:48]} 11... O-O {[%clk 0:04:26.2]} 12. h3 {[%clk 0:04:46.1]} 12...
Ne8 {[%clk 0:04:11.8]} 13. Nd5 {[%clk 0:04:43.3]} 13... Qd8 {[%clk 0:04:06.9]}
14. d4 {[%clk 0:04:40.1]} 14... e6 {[%clk 0:04:05.5]} 15. Nc3 {[%clk 0:04:38.7]}
15... f5 {[%clk 0:03:55]} 16. d5 {[%clk 0:04:31.8]} 16... e5 {[%clk 0:03:50]}
17. exf5 {[%clk 0:04:26.9]} 17... gxf5 {[%clk 0:03:36.9]} 18. Qh5 {[%clk
0:04:26]} 18... Qf6 {[%clk 0:03:08.7]} 19. Nh4 {[%clk 0:04:22.2]} 19... e4
{[%clk 0:02:50.6]} 20. g4 {[%clk 0:04:19.7]} 20... fxg4 {[%clk 0:02:41.5]} 21.
hxg4 {[%clk 0:04:18.8]} 21... Qf7 {[%clk 0:02:20.4]} 22. Qxf7+ {[%clk 0:04:17]}
22... Rxf7 {[%clk 0:02:18.8]} 23. Nf5 {[%clk 0:04:15.9]} 23... Bxc3 {[%clk
0:02:14]} 24. bxc3 {[%clk 0:04:15]} 24... Ndf6 {[%clk 0:02:08.6]} 25. Nh6+
{[%clk 0:04:13.6]} 25... Kg7 {[%clk 0:02:06.2]} 26. Nxf7 {[%clk 0:04:12.6]}
26... Kxf7 {[%clk 0:02:05.7]} 27. c4 {[%clk 0:04:06.8]} 27... Nxg4 {[%clk
0:02:03.6]} 28. Rae1 {[%clk 0:04:04.5]} 28... Nef6 {[%clk 0:02:02.6]} 29. Bc1
{[%clk 0:04:01]} 29... Rg8 {[%clk 0:02:01.9]} 30. Kh1 {[%clk 0:03:57.6]} 30...
h5 {[%clk 0:01:28.9]} 31. Re2 {[%clk 0:03:55.1]} 31... Kg6 {[%clk 0:01:20.2]}
32. f5+ {[%clk 0:03:53.4]} 32... Kf7 {[%clk 0:01:18.5]} 33. Bf4 {[%clk
0:03:53.1]} 33... Ke7 {[%clk 0:01:14.8]} 34. Rg2 {[%clk 0:03:44.7]} 34... Kd7
{[%clk 0:00:59.3]} 35. a4 {[%clk 0:03:41.7]} 35... Re8 {[%clk 0:00:46.3]} 36.
Re2 {[%clk 0:03:36.8]} 36... Re7 {[%clk 0:00:35.9]} 37. Kg2 {[%clk 0:03:34.8]}
37... Re8 {[%clk 0:00:31.1]} 38. Kh3 {[%clk 0:03:31.7]} 38... a6 {[%clk
0:00:28.1]} 39. Rb1 {[%clk 0:03:29.3]} 39... Kc7 {[%clk 0:00:24.3]} 40. Kh4
{[%clk 0:03:25.6]} 40... Rg8 {[%clk 0:00:12.5]} 41. Bg5 {[%clk 0:03:23.4]} 1-0

[Event "Live Chess"]
[Site "Chess.com"]
[Date "2024.06.01"]
[Round "-"]
[White "NeilDruggan73"]
[Black "ggosyaa"]
[Result "1-0"]
[WhiteElo "1750"]
[BlackElo "588"]
[TimeControl "300"]
[EndTime "14:18:28 PDT"]
[Termination "NeilDruggan73 won by checkmate"]

1. d4 {[%clk 0:04:55.2]} 1... d5 {[%clk 0:04:56]} 2. Bg5 {[%clk 0:04:52]} 2...
Nc6 {[%clk 0:04:45.6]} 3. Nf3 {[%clk 0:04:49.7]} 3... e6 {[%clk 0:04:44]} 4.
Bxd8 {[%clk 0:04:47.2]} 4... Nxd8 {[%clk 0:04:40]} 5. c4 {[%clk 0:04:44.3]} 5...
dxc4 {[%clk 0:04:35.6]} 6. e4 {[%clk 0:04:42.9]} 6... Nc6 {[%clk 0:04:33]} 7.
Bxc4 {[%clk 0:04:41]} 7... Bb4+ {[%clk 0:04:28.5]} 8. Nc3 {[%clk 0:04:38.9]}
8... Nf6 {[%clk 0:04:22.8]} 9. e5 {[%clk 0:04:34.2]} 9... Ne4 {[%clk 0:04:21.7]}
10. O-O {[%clk 0:04:30.8]} 10... Nxc3 {[%clk 0:04:18.6]} 11. bxc3 {[%clk
0:04:29.6]} 11... Bxc3 {[%clk 0:04:18.2]} 12. Rb1 {[%clk 0:04:25.3]} 12... b6
{[%clk 0:04:11.2]} 13. Bb5 {[%clk 0:04:22.8]} 13... Bb7 {[%clk 0:04:09.6]} 14.
Qa4 {[%clk 0:04:20.9]} 14... O-O {[%clk 0:04:07.2]} 15. Bxc6 {[%clk 0:04:19.4]}
15... Bxc6 {[%clk 0:04:02.8]} 16. Qxc6 {[%clk 0:04:19]} 16... Rad8 {[%clk
0:03:58.7]} 17. Qxc3 {[%clk 0:04:17.4]} 17... Rfe8 {[%clk 0:03:57.5]} 18. Qd3
{[%clk 0:04:11.4]} 18... c5 {[%clk 0:03:55.1]} 19. Ng5 {[%clk 0:04:10.5]} 19...
c4 {[%clk 0:03:53.1]} 20. Qxh7+ {[%clk 0:04:07.8]} 20... Kf8 {[%clk 0:03:52.1]}
21. Qh8+ {[%clk 0:04:06.7]} 21... Ke7 {[%clk 0:03:51.3]} 22. Qxg7 {[%clk
0:04:06.2]} 22... c3 {[%clk 0:03:49.1]} 23. Qxf7# {[%clk 0:04:04.7]} 1-0

[Event "Live Chess"]
[Site "Chess.com"]
[Date "2024.06.01"]
[Round "-"]
[White "Delacorta"]
[Black "upoe610"]
[Result "0-1"]
[WhiteElo "1587"]
[BlackElo "2248"]
[TimeControl "300"]
[EndTime "14:18:33 PDT"]
[Termination "upoe610 won by resignation"]

1. d4 {[%clk 0:04:56.6]} 1... Nf6 {[%clk 0:04:58.2]} 2. Nf3 {[%clk 0:04:56.5]}
2... c5 {[%clk 0:04:57.2]} 3. e3 {[%clk 0:04:56.4]} 3... d5 {[%clk 0:04:56.1]}
4. Bd3 {[%clk 0:04:54.6]} 4... Nc6 {[%clk 0:04:53.4]} 5. b3 {[%clk 0:04:51.6]}
5... g6 {[%clk 0:04:51.8]} 6. Bb2 {[%clk 0:04:50]} 6... cxd4 {[%clk 0:04:51.1]}
7. exd4 {[%clk 0:04:48.6]} 7... Bg7 {[%clk 0:04:49.1]} 8. O-O {[%clk 0:04:43.6]}
8... O-O {[%clk 0:04:48.2]} 9. Nbd2 {[%clk 0:04:42.3]} 9... Bg4 {[%clk
0:04:44.9]} 10. Be2 {[%clk 0:04:40.9]} 10... Bf5 {[%clk 0:04:43.6]} 11. c3
{[%clk 0:04:39]} 11... a5 {[%clk 0:04:42.1]} 12. Ba3 {[%clk 0:04:37.5]} 12...
Re8 {[%clk 0:04:40.5]} 13. Rc1 {[%clk 0:04:32.5]} 13... Ne4 {[%clk 0:04:37.6]}
14. Nxe4 {[%clk 0:04:28.1]} 14... Bxe4 {[%clk 0:04:37.5]} 15. Nd2 {[%clk
0:04:25.4]} 15... Bf5 {[%clk 0:04:36.3]} 16. Bg4 {[%clk 0:04:23]} 16... Qd7
{[%clk 0:04:33.6]} 17. Bxf5 {[%clk 0:04:21.1]} 17... Qxf5 {[%clk 0:04:32.4]} 18.
Nf3 {[%clk 0:04:16.9]} 18... a4 {[%clk 0:04:27]} 19. b4 {[%clk 0:04:08.4]} 19...
Na7 {[%clk 0:04:26.2]} 20. Re1 {[%clk 0:04:04.6]} 20... Nb5 {[%clk 0:04:24.8]}
21. Bb2 {[%clk 0:04:03.8]} 21... a3 {[%clk 0:04:24.1]} 22. Ba1 {[%clk 0:04:03]}
22... Rac8 {[%clk 0:04:23]} 23. Qd2 {[%clk 0:03:49.6]} 23... Nd6 {[%clk
0:04:19.4]} 24. Qc2 {[%clk 0:03:42.6]} 24... Qxc2 {[%clk 0:04:17]} 25. Rxc2
{[%clk 0:03:41.4]} 25... Nc4 {[%clk 0:04:16.9]} 26. Rce2 {[%clk 0:03:38.3]}
26... e6 {[%clk 0:04:15.5]} 27. Nd2 {[%clk 0:03:30.1]} 27... Nxd2 {[%clk
0:04:12.6]} 28. Rxd2 {[%clk 0:03:29.3]} 28... Rc4 {[%clk 0:04:12.5]} 29. Rde2
{[%clk 0:03:24.5]} 29... Rec8 {[%clk 0:04:10.7]} 30. h3 {[%clk 0:03:20.5]} 30...
b5 {[%clk 0:04:08.3]} 31. Re3 {[%clk 0:03:17.1]} 31... Kf8 {[%clk 0:04:06]} 32.
Rf3 {[%clk 0:03:16.1]} 32... Ke8 {[%clk 0:04:03.9]} 33. Rg3 {[%clk 0:03:10.9]}
33... h5 {[%clk 0:04:02.2]} 34. f4 {[%clk 0:03:09.7]} 34... Bh6 {[%clk
0:03:58.9]} 35. Rf3 {[%clk 0:03:03.4]} 35... Ke7 {[%clk 0:03:55.4]} 36. f5
{[%clk 0:03:01.6]} 36... gxf5 {[%clk 0:03:47.6]} 37. Rxf5 {[%clk 0:03:00]} 37...
Bd2 {[%clk 0:03:47.2]} 38. Re2 {[%clk 0:02:52]} 38... Bxc3 {[%clk 0:03:46.2]}
39. Bxc3 {[%clk 0:02:50.1]} 39... Rxc3 {[%clk 0:03:46.1]} 40. Rxh5 {[%clk
0:02:37.8]} 40... Rc2 {[%clk 0:03:43.5]} 41. Rhe5 {[%clk 0:02:23]} 41... Rb2
{[%clk 0:03:42.3]} 42. h4 {[%clk 0:02:17.6]} 42... Rc1+ {[%clk 0:03:38.6]} 43.
Kh2 {[%clk 0:02:16.2]} 43... Rcc2 {[%clk 0:03:37.9]} 44. Rxc2 {[%clk 0:02:13.7]}
44... Rxc2 {[%clk 0:03:37.1]} 45. Re1 {[%clk 0:02:01.8]} 45... Rxa2 {[%clk
0:03:35.9]} 46. h5 {[%clk 0:02:00.8]} 46... Kf6 {[%clk 0:03:34.9]} 47. Kh3
{[%clk 0:01:58]} 47... Rb2 {[%clk 0:03:32.6]} 48. Kh4 {[%clk 0:01:56.4]} 48...
Rxb4 {[%clk 0:03:31.6]} 49. g4 {[%clk 0:01:45.9]} 49... Rxd4 {[%clk 0:03:27.3]}
50. h6 {[%clk 0:01:33.2]} 50... Kg6 {[%clk 0:03:24.6]} 51. Rf1 {[%clk
0:01:25.3]} 51... f5 {[%clk 0:03:21.4]} 52. h7 {[%clk 0:01:16.5]} 52... Rxg4+
{[%clk 0:03:19.4]} 0-1

[Event "Live Chess"]
[Site "Chess.com"]
[Date "2024.06.01"]
[Round "-"]
[White "lyricalschemes"]
[Black "agamilewska"]
[Result "1-0"]
[WhiteElo "2398"]
[BlackElo "1764"]
[TimeControl "300"]
[EndTime "14:18:42 PDT"]
[Termination "lyricalschemes won on time"]

1. e4 {[%clk 0:04:58.3]} 1... e5 {[%clk 0:04:58.9]} 2. Nc3 {[%clk 0:04:57.3]}
2... Nc6 {[%clk 0:04:58]} 3. Bc4 {[%clk 0:04:56.2]} 3... Nf6 {[%clk 0:04:57.1]}
4. d3 {[%clk 0:04:55.2]} 4... Bb4 {[%clk 0:04:56.3]} 5. Ne2 {[%clk 0:04:54]}
5... d6 {[%clk 0:04:55.5]} 6. O-O {[%clk 0:04:53.1]} 6... O-O {[%clk 0:04:53.1]}
7. Bg5 {[%clk 0:04:52.2]} 7... h6 {[%clk 0:04:51.7]} 8. Bh4 {[%clk 0:04:51.6]}
8... Be6 {[%clk 0:04:45.6]} 9. f4 {[%clk 0:04:44.8]} 9... Bxc4 {[%clk 0:04:44]}
10. dxc4 {[%clk 0:04:43.9]} 10... exf4 {[%clk 0:04:42.1]} 11. Bxf6 {[%clk
0:04:29.9]} 11... Qxf6 {[%clk 0:04:37.7]} 12. Nd5 {[%clk 0:04:29.2]} 12... Qxb2
{[%clk 0:04:33.8]} 13. Rb1 {[%clk 0:04:19.3]} 13... Qa3 {[%clk 0:04:25.5]} 14.
Rb3 {[%clk 0:04:11.4]} 14... Qxa2 {[%clk 0:04:22.8]} 15. Nxb4 {[%clk 0:04:07.6]}
15... Nxb4 {[%clk 0:04:21]} 16. Rxb4 {[%clk 0:04:07.2]} 16... b6 {[%clk
0:04:16.6]} 17. Nxf4 {[%clk 0:04:02.7]} 17... a5 {[%clk 0:04:14.1]} 18. Rb1
{[%clk 0:04:01]} 18... Qxc4 {[%clk 0:04:13.1]} 19. Re1 {[%clk 0:03:58.2]} 19...
a4 {[%clk 0:04:10.1]} 20. Nd5 {[%clk 0:03:57.5]} 20... a3 {[%clk 0:04:05]} 21.
Qd3 {[%clk 0:03:52.8]} 21... Qc5+ {[%clk 0:03:51.3]} 22. Kh1 {[%clk 0:03:50.6]}
22... a2 {[%clk 0:03:45.7]} 23. Ra1 {[%clk 0:03:49.7]} 23... Ra3 {[%clk
0:03:31.3]} 24. Qe2 {[%clk 0:03:34.5]} 24... Rfa8 {[%clk 0:03:22.7]} 25. c4
{[%clk 0:03:30.6]} 25... c6 {[%clk 0:03:10.2]} 26. Ne7+ {[%clk 0:03:20.5]} 26...
Kf8 {[%clk 0:03:08.3]} 27. Nf5 {[%clk 0:03:18.2]} 27... b5 {[%clk 0:02:41.8]}
28. cxb5 {[%clk 0:03:16.4]} 28... cxb5 {[%clk 0:02:40.8]} 29. Qb2 {[%clk
0:03:08.2]} 29... f6 {[%clk 0:02:33.9]} 30. Rec1 {[%clk 0:03:06.2]} 30... Qe5
{[%clk 0:02:25.4]} 31. Qb4 {[%clk 0:02:56.5]} 31... R8a4 {[%clk 0:02:10]} 32.
Qxd6+ {[%clk 0:02:51.8]} 32... Qxd6 {[%clk 0:02:09]} 33. Nxd6 {[%clk 0:02:51]}
33... b4 {[%clk 0:02:05.8]} 34. Nc4 {[%clk 0:02:43.9]} 34... Rc3 {[%clk
0:01:58.8]} 35. Rxc3 {[%clk 0:02:02.1]} 35... bxc3 {[%clk 0:01:58.7]} 36. Nb6
{[%clk 0:01:57]} 36... Rxe4 {[%clk 0:01:54.9]} 37. h3 {[%clk 0:01:50.9]} 37...
c2 {[%clk 0:01:48.9]} 38. Nd5 {[%clk 0:01:43.7]} 38... Rd4 {[%clk 0:01:41.5]}
39. Nc3 {[%clk 0:01:41.5]} 39... Rc4 {[%clk 0:01:31.3]} 40. Nxa2 {[%clk
0:01:37.3]} 40... Ra4 {[%clk 0:01:28.2]} 41. Kh2 {[%clk 0:01:20.2]} 41... Rxa2
{[%clk 0:01:23.7]} 42. Rc1 {[%clk 0:01:17.6]} 42... Rb2 {[%clk 0:01:22.5]} 43.
Kg3 {[%clk 0:01:16.7]} 43... Ke7 {[%clk 0:01:21.9]} 44. Kf3 {[%clk 0:01:16.4]}
44... Ke6 {[%clk 0:01:21.2]} 45. Ke3 {[%clk 0:01:16.1]} 45... Ke5 {[%clk
0:01:20.5]} 46. Kd3 {[%clk 0:01:15.8]} 46... Kf4 {[%clk 0:01:18.7]} 47. Kc3
{[%clk 0:01:14.8]} 47... Ra2 {[%clk 0:01:16.4]} 48. Kb3 {[%clk 0:01:13.3]} 48...
Ra6 {[%clk 0:01:10.2]} 49. Rxc2 {[%clk 0:01:12.3]} 49... Rd6 {[%clk 0:01:08.5]}
50. Rc3 {[%clk 0:01:06.6]} 50... Rd2 {[%clk 0:01:05.5]} 51. Rf3+ {[%clk
0:01:04.2]} 51... Ke4 {[%clk 0:00:58.2]} 52. Kc4 {[%clk 0:00:52.4]} 52... Rxg2
{[%clk 0:00:55.6]} 53. Ra3 {[%clk 0:00:51.3]} 53... Rc2+ {[%clk 0:00:53.7]} 54.
Kb3 {[%clk 0:00:49.9]} 54... Rh2 {[%clk 0:00:51.1]} 55. Kc4 {[%clk 0:00:48.5]}
55... Kf4 {[%clk 0:00:49.1]} 56. Kd5 {[%clk 0:00:47.3]} 56... f5 {[%clk
0:00:47.5]} 57. Ke6 {[%clk 0:00:46.6]} 57... Re2+ {[%clk 0:00:43.6]} 58. Kf7
{[%clk 0:00:44.1]} 58... g5 {[%clk 0:00:42.8]} 59. Kg6 {[%clk 0:00:43.4]} 59...
Re6+ {[%clk 0:00:37]} 60. Kh5 {[%clk 0:00:42.1]} 60... g4 {[%clk 0:00:33.4]} 61.
hxg4 {[%clk 0:00:40.3]} 61... fxg4 {[%clk 0:00:32.4]} 62. Ra4+ {[%clk
0:00:39.3]} 62... Kg3 {[%clk 0:00:31.5]} 63. Rxg4+ {[%clk 0:00:38.1]} 63... Kh3
{[%clk 0:00:27.2]} 64. Ra4 {[%clk 0:00:36.3]} 64... Rf6 {[%clk 0:00:21.2]} 65.
Ra3+ {[%clk 0:00:35.1]} 65... Kg2 {[%clk 0:00:20]} 66. Ra2+ {[%clk 0:00:34]}
66... Kg3 {[%clk 0:00:19.3]} 67. Ra1 {[%clk 0:00:33.3]} 67... Kg2 {[%clk
0:00:18.5]} 68. Ra8 {[%clk 0:00:32]} 68... Kg3 {[%clk 0:00:17.3]} 69. Rg8+
{[%clk 0:00:31.6]} 69... Kf4 {[%clk 0:00:16.1]} 70. Rg1 {[%clk 0:00:30]} 70...
Ke5 {[%clk 0:00:14.4]} 71. Re1+ {[%clk 0:00:27.9]} 71... Kf5 {[%clk 0:00:13.2]}
72. Ra1 {[%clk 0:00:26.1]} 72... Rc6 {[%clk 0:00:12]} 73. Ra5+ {[%clk
0:00:25.2]} 73... Kf6 {[%clk 0:00:10.9]} 74. Kxh6 {[%clk 0:00:23.1]} 74... Ke7+
{[%clk 0:00:10.3]} 75. Kg5 {[%clk 0:00:22]} 75... Re6 {[%clk 0:00:10.2]} 76.
Ra7+ {[%clk 0:00:20.7]} 76... Kd6 {[%clk 0:00:08.8]} 77. Kf5 {[%clk 0:00:20.4]}
77... Re1 {[%clk 0:00:07.3]} 78. Ra6+ {[%clk 0:00:19.4]} 78... Kc7 {[%clk
0:00:06.2]} 79. Ra7+ {[%clk 0:00:18.7]} 79... Kb8 {[%clk 0:00:05.8]} 80. Ra3
{[%clk 0:00:18.4]} 80... Kb7 {[%clk 0:00:05.2]} 81. Kg4 {[%clk 0:00:17.8]} 81...
Kb8 {[%clk 0:00:04.6]} 82. Kf3 {[%clk 0:00:17.5]} 82... Kb7 {[%clk 0:00:04.1]}
83. Rb3+ {[%clk 0:00:16.9]} 83... Kc7 {[%clk 0:00:02.8]} 84. Kf2 {[%clk
0:00:16.8]} 84... Re8 {[%clk 0:00:01.9]} 85. Rc3+ {[%clk 0:00:15.8]} 85... Kd7
{[%clk 0:00:01.4]} 86. Rh3 {[%clk 0:00:15.7]} 86... Ke7 {[%clk 0:00:00.8]} 87.
Re3+ {[%clk 0:00:14.2]} 87... Kd7 {[%clk 0:00:00.7]} 88. Rd3+ {[%clk 0:00:13.4]}
1-0

[Event "Live Chess"]
[Site "Chess.com"]
[Date "2024.06.01"]
[Round "-"]
[White "Zhevzh1k7"]
[Black "GwaryTek"]
[Result "0-1"]
[WhiteElo "1105"]
[BlackElo "1920"]
[TimeControl "300"]
[EndTime "14:18:44 PDT"]
[Termination "GwaryTek won by resignation"]

1. e4 {[%clk 0:04:54.7]} 1... Nf6 {[%clk 0:04:49.6]} 2. e5 {[%clk 0:04:52.4]}
2... Nd5 {[%clk 0:04:47.9]} 3. c4 {[%clk 0:04:52]} 3... Nb6 {[%clk 0:04:46.6]}
4. d4 {[%clk 0:04:51.2]} 4... d6 {[%clk 0:04:31.1]} 5. Nc3 {[%clk 0:04:41.2]}
5... dxe5 {[%clk 0:04:26.2]} 6. dxe5 {[%clk 0:04:41.1]} 6... Qxd1+ {[%clk
0:04:24.5]} 7. Nxd1 {[%clk 0:04:41]} 7... Nc6 {[%clk 0:04:22.5]} 8. Bf4 {[%clk
0:04:35.2]} 8... Be6 {[%clk 0:04:16.6]} 9. c5 {[%clk 0:04:32.4]} 9... O-O-O
{[%clk 0:04:14.1]} 10. cxb6 {[%clk 0:04:28.5]} 10... axb6 {[%clk 0:04:10.1]} 11.
Ne2 {[%clk 0:04:22.4]} 11... Nb4 {[%clk 0:04:08.8]} 12. Rc1 {[%clk 0:04:03.7]}
12... Nd3+ {[%clk 0:04:04.3]} 13. Kd2 {[%clk 0:03:59.7]} 13... Nxf4+ {[%clk
0:03:58.3]} 14. Kc2 {[%clk 0:03:55.4]} 14... Bf5+ {[%clk 0:03:20]} 15. Kb3
{[%clk 0:03:50.7]} 15... Nd3 {[%clk 0:03:02.6]} 16. Rc3 {[%clk 0:03:42.9]} 16...
Nc5+ {[%clk 0:02:43.9]} 17. Ka3 {[%clk 0:03:18.7]} 17... Rxd1 {[%clk 0:02:38.7]}
18. Ng3 {[%clk 0:03:13.5]} 18... e6 {[%clk 0:02:30.3]} 19. Bc4 {[%clk
0:02:48.4]} 19... Rxh1 {[%clk 0:02:09.3]} 20. Nxh1 {[%clk 0:02:45.5]} 20... Ne4+
{[%clk 0:02:08.2]} 21. Kb3 {[%clk 0:02:43.6]} 21... Nxc3 {[%clk 0:01:55.4]} 22.
Kxc3 {[%clk 0:02:43.5]} 22... Bc5 {[%clk 0:01:50.1]} 23. f4 {[%clk 0:02:39.7]}
23... Rd8 {[%clk 0:01:47.8]} 24. Nf2 {[%clk 0:02:36.9]} 24... Bxf2 {[%clk
0:01:46.4]} 0-1

[Event "Live Chess"]
[Site "Chess.com"]
[Date "2024.06.01"]
[Round "-"]
[White "dhairyapandyauk"]
[Black "chessfiction"]
[Result "0-1"]
[WhiteElo "1702"]
[BlackElo "2376"]
[TimeControl "300"]
[EndTime "14:18:50 PDT"]
[Termination "chessfiction won by checkmate"]

1. e4 {[%clk 0:04:54]} 1... e5 {[%clk 0:04:58.8]} 2. c3 {[%clk 0:04:52.2]} 2...
d6 {[%clk 0:04:56.9]} 3. d3 {[%clk 0:04:44.7]} 3... f5 {[%clk 0:04:55.3]} 4. f4
{[%clk 0:04:41.9]} 4... Nf6 {[%clk 0:04:55.2]} 5. Qf3 {[%clk 0:04:28]} 5... Nc6
{[%clk 0:04:29.9]} 6. Be3 {[%clk 0:04:19]} 6... g6 {[%clk 0:04:26]} 7. exf5
{[%clk 0:04:03]} 7... Bxf5 {[%clk 0:04:16.7]} 8. d4 {[%clk 0:03:52.3]} 8... e4
{[%clk 0:04:03.9]} 9. Qe2 {[%clk 0:03:47.1]} 9... Ng4 {[%clk 0:04:03.8]} 10. h3
{[%clk 0:03:39.3]} 10... Nxe3 {[%clk 0:03:48.5]} 11. Qxe3 {[%clk 0:03:36.3]}
11... Bg7 {[%clk 0:03:46.3]} 12. Ne2 {[%clk 0:03:30.3]} 12... O-O {[%clk
0:03:42.4]} 13. Nd2 {[%clk 0:03:26]} 13... Ne7 {[%clk 0:03:39.8]} 14. c4 {[%clk
0:03:16.7]} 14... c5 {[%clk 0:03:35.7]} 15. d5 {[%clk 0:03:15.5]} 15... Bxb2
{[%clk 0:03:34.1]} 16. Rb1 {[%clk 0:03:13.5]} 16... Bf6 {[%clk 0:03:32.7]} 17.
Rxb7 {[%clk 0:03:11.8]} 17... Qa5 {[%clk 0:03:30.1]} 18. Qb3 {[%clk 0:03:05.4]}
18... Bd4 {[%clk 0:03:02.6]} 19. Nxd4 {[%clk 0:02:59.4]} 19... cxd4 {[%clk
0:03:01]} 20. Kd1 {[%clk 0:02:53.1]} 20... e3 {[%clk 0:02:59.1]} 21. Nf3 {[%clk
0:02:50.3]} 21... Be4 {[%clk 0:02:57.1]} 22. Nxd4 {[%clk 0:02:47.8]} 22... Qd2#
{[%clk 0:02:55.4]} 0-1